fUST/lending_fUST_20260410
["ID","MTS","AMOUNT","RATE_DAILY","PERIOD"]
[420187551,1775763054493,-500.0,0.00019726,18]
[420187552,1775763054506,-157.71298186,0.00019726,18]
[420187553,1775763054519,-510.7,0.00019726,18]
[420187554,1775763054533,-852.11,0.00019726,18]
[420187555,1775763054545,-500.0,0.00019726,18]
[420187556,1775763054556,-273.25787867,0.00019726,18]
[420187557,1775763054567,-500.0,0.00019726,18]
[420187558,1775763054578,-500.0,0.00019726,18]
[420187559,1775763054590,-500.0,0.00019726,18]
[420187560,1775763054603,-948.01,0.00019726,18]
[420187561,1775763054617,-500.0,0.00019726,18]
[420187562,1775763054630,-500.0,0.00019726,18]
[420187563,1775763054644,-500.0,0.00019726,18]
[420187564,1775763054657,-500.0,0.00019726,18]
[420187565,1775763054669,-500.0,0.00019726,18]
[420187566,1775763054682,-500.0,0.00019726,18]
[420187567,1775763054696,-648.42,0.00019726,18]
[420187568,1775763054708,-500.0,0.00019726,18]
[420187569,1775763054720,-919.45,0.00019726,18]
[420187570,1775763054733,-500.0,0.00019726,18]
[420187571,1775763054745,-500.0,0.00019726,18]
[420187572,1775763054756,-381.46567727,0.00019726,8]
[420187573,1775763054767,-500.0,0.00019726,7]
[420187574,1775763054779,-500.0,0.00019726,18]
[420187575,1775763054790,-625.78,0.00019726,18]
[420187576,1775763054801,-500.0,0.00019726,18]
[420187577,1775763054813,-500.0,0.00019726,18]
[420187578,1775763054824,-505.67,0.00019726,18]
[420187579,1775763054836,-500.0,0.00019726,18]
[420187580,1775763054848,-562.47,0.00019726,18]
[420187581,1775763054860,-500.0,0.00019726,18]
[420187582,1775763054871,-500.0,0.00019726,18]
[420187583,1775763054885,-500.0,0.00019726,18]
[420187584,1775763054896,-500.0,0.00019726,18]
[420187585,1775763054909,-1677.96,0.00019726,18]
[420187586,1775763054920,-500.0,0.00019726,18]
[420187587,1775763054932,-500.0,0.00019726,18]
[420187588,1775763054943,-500.0,0.00019726,18]
[420187589,1775763054954,-525.0,0.00019726,18]
[420187590,1775763054965,-500.0,0.00019726,18]
[420187591,1775763054976,-500.0,0.00019726,18]
[420187592,1775763054991,-500.0,0.00019726,18]
[420187593,1775763055025,-500.0,0.00019726,18]
[420187594,1775763055036,-713.68,0.00019726,18]
[420187595,1775763055047,-500.0,0.00019726,18]
[420187596,1775763055059,-500.0,0.00019726,18]
[420187597,1775763055070,-500.0,0.00019726,18]
[420187598,1775763055081,-500.0,0.00019726,18]
[420187599,1775763055092,-638.57,0.00019726,18]
[420187600,1775763055102,-609.23,0.00019726,18]
[420187601,1775763055113,-500.0,0.00019726,18]
[420187602,1775763055124,-741.6,0.00019726,18]
[420187603,1775763055135,-1016.78,0.00019726,18]
[420187604,1775763055146,-524.63,0.00019726,18]
[420187605,1775763055157,-3167.98,0.00019726,18]
[420187606,1775763055180,-1000.0,0.00019726,2]
[420187607,1775763055194,-560.96,0.00019726,18]
[420187608,1775763055205,-2171.22,0.00019726,18]
[420187609,1775763055216,-1028.09,0.00019726,18]
[420187610,1775763055227,-602.24,0.00019726,18]
[420187611,1775763055239,-500.0,0.00019726,18]
[420187612,1775763055249,-500.0,0.00019726,18]
[420187613,1775763055261,-500.0,0.00019726,18]
[420187614,1775763055274,-515.41,0.00019726,18]
[420187615,1775763055285,-500.0,0.00019726,18]
[420187616,1775763055296,-500.0,0.00019726,18]
[420187617,1775763055308,-365.41312009,0.00019726,18]
[420187618,1775763055319,-630.96,0.00019726,18]
[420187619,1775763055330,-500.0,0.00019726,18]
[420187620,1775763055341,-500.0,0.00019726,18]
[420187621,1775763055352,-1506.07,0.00019726,18]
[420187622,1775763055363,-500.0,0.00019726,18]
[420187623,1775763055373,-500.0,0.00019726,18]
[420187624,1775763055385,-500.0,0.00019726,18]
[420187625,1775763055396,-323.53741536,0.00019726,18]
[420187626,1775763055415,-500.0,0.00019726,18]
[420187627,1775763055431,-1566.03,0.00019726,18]
[420187628,1775763055442,-922.23,0.00019726,18]
[420187629,1775763055452,-500.0,0.00019726,18]
[420187630,1775763055463,-958.23,0.00019726,18]
[420187631,1775763055474,-500.0,0.00019726,18]
[420187632,1775763055486,-500.0,0.00019726,18]
[420187633,1775763055496,-500.0,0.00019726,18]
[420187634,1775763055507,-500.0,0.00019726,18]
[420187635,1775763055518,-167.13569895,0.00019726,18]
[420187636,1775763055530,-500.0,0.00019726,7]
[420187637,1775763055541,-629.1,0.00019726,18]
[420187638,1775763055553,-1142.33,0.00019726,18]
[420187639,1775763055564,-500.0,0.00019726,18]
[420187640,1775763055575,-500.0,0.00019726,18]
[420187641,1775763055587,-982.45,0.00019726,18]
[420187642,1775763055597,-500.0,0.00019726,18]
[420187643,1775763055618,-1118.06,0.00019726,18]
[420187644,1775763055640,-500.0,0.00019726,18]
[420187645,1775763055650,-500.0,0.00019726,18]
[420187646,1775763055662,-1042.42,0.00019726,18]
[420187647,1775763055673,-2908.11,0.00019726,18]
[420187648,1775763055685,-1339.61,0.00019726,18]
[420187649,1775763055697,-500.0,0.00019726,18]
[420187650,1775763055708,-596.27,0.00019726,18]
[420187651,1775763055719,-942.23,0.00019726,18]
[420187652,1775763055730,-1736.8,0.00019726,18]
[420187653,1775763055741,-1743.49,0.00019726,18]
[420187654,1775763055752,-500.0,0.00019726,18]
[420187655,1775763055763,-500.0,0.00019726,18]
[420187656,1775763055775,-500.0,0.00019726,18]
[420187657,1775763055787,-500.0,0.00019726,18]
[420187658,1775763055798,-500.0,0.00019726,18]
[420187659,1775763055810,-500.0,0.00019726,18]
[420187660,1775763055821,-500.0,0.00019726,18]
[420187661,1775763055832,-500.0,0.00019726,18]
[420187662,1775763055843,-500.0,0.00019726,18]
[420187663,1775763055854,-500.0,0.00019726,18]
[420187664,1775763055865,-3507.49,0.00019726,18]
[420187665,1775763055876,-500.0,0.00019726,18]
[420187666,1775763055888,-500.0,0.00019726,18]
[420187667,1775763055899,-500.0,0.00019726,18]
[420187668,1775763055911,-505.63,0.00019726,18]
[420187669,1775763055923,-500.0,0.00019726,18]
[420187670,1775763055935,-500.0,0.00019726,18]
[420187671,1775763055945,-500.0,0.00019726,18]
[420187672,1775763055956,-1393.91,0.00019726,18]
[420187673,1775763055968,-500.0,0.00019726,18]
[420187674,1775763055979,-500.0,0.00019726,18]
[420187675,1775763055991,-629.01,0.00019726,18]
[420187676,1775763056002,-500.0,0.00019726,18]
[420187677,1775763056014,-1732.15,0.00019726,18]
[420187678,1775763056025,-334.10795446,0.00019726,18]
[420187679,1775763056036,-500.0,0.00019726,18]
[420187680,1775763056047,-500.0,0.00019726,18]
[420187681,1775763056057,-500.0,0.00019726,18]
[420187682,1775763056083,-500.0,0.00019726,18]
[420187683,1775763056096,-500.0,0.00019726,18]
[420187684,1775763056108,-500.0,0.00019726,18]
[420187685,1775763056119,-500.0,0.00019726,18]
[420187686,1775763056130,-500.0,0.00019726,18]
[420187687,1775763056141,-2072.36,0.00019726,18]
[420187688,1775763056152,-627.94,0.00019726,18]
[420187689,1775763056165,-856.17,0.00019726,18]
[420187690,1775763056176,-375.73135345,0.00019726,18]
[420187691,1775763056187,-500.0,0.00019726,18]
[420187692,1775763056199,-2245.01,0.00019726,18]
[420187693,1775763056226,-976.09,0.00019726,18]
[420187694,1775763056246,-500.0,0.00019726,10]
[420187695,1775763056258,-520.72,0.00019726,18]
[420187696,1775763056270,-1438.65,0.00019726,18]
[420187697,1775763056282,-3288.16,0.00019726,18]
[420187698,1775763056295,-955.47,0.00019726,18]
[420187699,1775763056306,-500.0,0.00019726,18]
[420187700,1775763056318,-500.0,0.00019726,18]
[420187701,1775763056329,-1091.59,0.00019726,18]
[420187702,1775763056342,-1280.87,0.00019726,18]
[420187703,1775763056360,-1520.02,0.00019726,18]
[420187704,1775763056379,-1358.37,0.00019726,18]
[420187705,1775763056390,-500.0,0.00019726,18]
[420187706,1775763056401,-500.0,0.00019726,18]
[420187707,1775763056414,-3106.41,0.00019726,18]
[420187708,1775763056426,-2597.56,0.00019726,18]
[420187709,1775763056437,-500.0,0.00019726,18]
[420187710,1775763056448,-500.0,0.00019726,18]
[420187711,1775763056459,-837.94,0.00019726,18]
[420187712,1775763056470,-500.0,0.00019726,18]
[420187713,1775763056481,-574.36,0.00019726,18]
[420187714,1775763056492,-929.32,0.00019726,18]
[420187715,1775763056503,-500.0,0.00019726,18]
[420187716,1775763056515,-500.0,0.00019726,18]
[420187717,1775763056527,-500.0,0.00019726,18]
[420187718,1775763056538,-941.87,0.00019726,18]
[420187719,1775763056550,-1033.44,0.00019726,18]
[420187720,1775763056561,-989.32,0.00019726,18]
[420187721,1775763056572,-2933.51,0.00019726,18]
[420187722,1775763056583,-1000.0,0.00019726,2]
[420187723,1775763056594,-1399.69,0.00019726,18]
[420187724,1775763056605,-500.0,0.00019726,18]
[420187725,1775763056616,-254.68521497,0.00019726,18]
[420187726,1775763056627,-7078.09,0.00019726,18]
[420187727,1775763056639,-500.0,0.00019726,18]
[420187728,1775763056650,-500.0,0.00019726,18]
[420187729,1775763056663,-500.0,0.00019726,18]
[420187730,1775763056673,-500.0,0.00019726,18]
[420187731,1775763056683,-500.0,0.00019726,18]
[420187732,1775763056693,-853.32,0.00019726,18]
[420187733,1775763056703,-561.3,0.00019726,18]
[420187734,1775763056713,-500.0,0.00019726,18]
[420187735,1775763056723,-5564.05,0.00019726,18]
[420187736,1775763056732,-1448.21,0.00019726,18]
[420187737,1775763056742,-500.0,0.00019726,18]
[420187738,1775763056752,-500.0,0.00019726,18]
[420187739,1775763056762,-644.56,0.00019726,18]
[420187740,1775763056772,-604.94020001,0.00019726,18]
[420187741,1775763056782,-534.55,0.00019726,18]
[420187742,1775763056792,-500.0,0.00019726,18]
[420187743,1775763056802,-500.0,0.00019726,18]
[420187744,1775763056812,-500.0,0.00019726,18]
[420187745,1775763056841,-500.0,0.00019726,18]
[420187746,1775763056857,-1658.69,0.00019726,18]
[420187747,1775763056867,-500.0,0.00019726,18]
[420187748,1775763056877,-548.2,0.00019726,18]
[420187749,1775763056887,-778.34,0.00019726,18]
[420187750,1775763056897,-500.0,0.00019726,18]
[420187751,1775763056908,-1008.52,0.00019726,18]
[420187752,1775763056918,-500.0,0.00019726,18]
[420187753,1775763056927,-500.0,0.00019726,18]
[420187754,1775763056937,-2074.22,0.00019726,18]
[420187755,1775763056948,-500.0,0.00019726,18]
[420187756,1775763056958,-500.0,0.00019726,18]
[420187757,1775763056968,-500.0,0.00019726,18]
[420187758,1775763056978,-500.0,0.00019726,18]
[420187759,1775763056988,-500.0,0.00019726,18]
[420187760,1775763056998,-500.0,0.00019726,18]
[420187761,1775763057008,-500.0,0.00019726,18]
[420187762,1775763057017,-647.12171074,0.00019726,18]
[420187763,1775763057027,-507.53,0.00019726,18]
[420187764,1775763057036,-500.0,0.00019726,18]
[420187765,1775763057047,-1082.16,0.00019726,18]
[420187766,1775763057078,-500.0,0.00019726,18]
[420187767,1775763057088,-500.0,0.00019726,18]
[420187768,1775763057098,-500.0,0.00019726,18]
[420187769,1775763057108,-500.0,0.00019726,18]
[420187770,1775763057118,-500.0,0.00019726,18]
[420187771,1775763057127,-316.18814219,0.00019726,18]
[420187772,1775763057137,-500.0,0.00019726,18]
[420187773,1775763057147,-1565.1,0.00019726,18]
[420187774,1775763057156,-948.53,0.00019726,18]
[420187775,1775763057168,-500.0,0.00019726,10]
[420187776,1775763057178,-500.0,0.00019726,18]
[420187777,1775763057188,-500.0,0.00019726,18]
[420187778,1775763057197,-754.55,0.00019726,18]
[420187779,1775763057207,-500.0,0.00019726,18]
[420187780,1775763057584,-500.0,0.00019726,18]
[420187781,1775763057602,-500.0,0.00019726,18]
[420187782,1775763057618,-500.0,0.00019726,18]
[420187783,1775763057636,-4948.71,0.00019726,18]
[420187784,1775763057648,-500.0,0.00019726,18]
[420187785,1775763057659,-3920.94,0.00019726,18]
[420187786,1775763057668,-500.0,0.00019726,18]
[420187787,1775763057677,-954.03,0.00019726,18]
[420187788,1775763057687,-500.0,0.00019726,18]
[420187789,1775763057696,-516.22,0.00019726,18]
[420187790,1775763057706,-611.92,0.00019726,18]
[420187791,1775763057715,-500.0,0.00019726,18]
[420187792,1775763057724,-500.0,0.00019726,18]
[420187793,1775763057733,-642.78,0.00019726,18]
[420187794,1775763057743,-500.0,0.00019726,18]
[420187795,1775763057752,-3937.41,0.00019726,18]
[420187796,1775763057761,-2493.8,0.00019726,18]
[420187797,1775763057771,-500.0,0.00019726,18]
[420187798,1775763057780,-500.0,0.00019726,18]
[420187799,1775763057790,-500.0,0.00019726,18]
[420187800,1775763057799,-941.57,0.00019726,18]
[420187801,1775763057808,-756.87,0.00019726,18]
[420187802,1775763057818,-500.0,0.00019726,18]
[420187803,1775763057827,-500.0,0.00019726,18]
[420187804,1775763057836,-500.0,0.00019726,18]
[420187805,1775763057845,-500.0,0.00019726,18]
[420187806,1775763057855,-500.0,0.00019726,18]
[420187807,1775763057864,-3506.83,0.00019726,18]
[420187808,1775763057874,-1616.27,0.00019726,18]
[420187809,1775763057883,-649.11,0.00019726,2]
[420187810,1775763057893,-500.0,0.00019726,18]
[420187811,1775763057903,-1023.68,0.00019726,18]
[420187812,1775763057913,-500.0,0.00019726,18]
[420187813,1775763057922,-500.0,0.00019726,18]
[420187814,1775763057931,-500.0,0.00019726,18]
[420187815,1775763057941,-724.16,0.00019726,18]
[420187816,1775763057950,-955.79,0.00019726,18]
[420187817,1775763057960,-1031.01,0.00019726,18]
[420187818,1775763057969,-500.0,0.00019726,18]
[420187819,1775763057978,-500.0,0.00019726,18]
[420187820,1775763057988,-500.0,0.00019726,18]
[420187821,1775763058004,-1070.05,0.00019726,18]
[420187822,1775763058019,-500.0,0.00019726,18]
[420187823,1775763058028,-500.0,0.00019726,18]
[420187824,1775763058038,-500.0,0.00019726,18]
[420187825,1775763058047,-1310.41,0.00019726,18]
[420187826,1775763058057,-542.46,0.00019726,18]
[420187827,1775763058066,-5018.72,0.00019726,18]
[420187828,1775763058075,-500.0,0.00019726,18]
[420187829,1775763058084,-500.0,0.00019726,18]
[420187830,1775763058094,-500.0,0.00019726,18]
[420187831,1775763058105,-1619.4,0.00019726,18]
[420187832,1775763058119,-500.0,0.00019726,18]
[420187833,1775763058135,-702.45,0.00019726,18]
[420187834,1775763058144,-2239.56,0.00019726,18]
[420187835,1775763058153,-733.33,0.00019726,18]
[420187836,1775763058164,-302.97576033,0.00019726,18]
[420187837,1775763058173,-500.0,0.00019726,18]
[420187838,1775763058182,-500.0,0.00019726,18]
[420187839,1775763058191,-500.0,0.00019726,18]
[420187840,1775763058200,-500.0,0.00019726,18]
[420187841,1775763058210,-500.0,0.00019726,18]
[420187842,1775763058219,-500.0,0.00019726,18]
[420187843,1775763058228,-500.0,0.00019726,18]
[420187844,1775763058237,-500.0,0.00019726,18]
[420187845,1775763058246,-500.0,0.00019726,18]
[420187846,1775763058255,-500.0,0.00019726,18]
[420187847,1775763058264,-580.6,0.00019726,18]
[420187848,1775763058273,-768.5,0.00019726,18]
[420187849,1775763058283,-862.03,0.00019726,18]
[420187850,1775763058292,-278.97397416,0.00019726,18]
[420187851,1775763058301,-4440.45,0.00019726,18]
[420187852,1775763058309,-1631.05,0.00019726,18]
[420187853,1775763058318,-500.0,0.00019726,18]
[420187854,1775763058327,-500.0,0.00019726,18]
[420187855,1775763058337,-500.0,0.00019726,18]
[420187856,1775763058346,-500.0,0.00019726,18]
[420187857,1775763058355,-783.8,0.00019726,18]
[420187858,1775763058364,-500.0,0.00019726,18]
[420187859,1775763058373,-610.98,0.00019726,18]
[420187860,1775763058382,-500.0,0.00019726,18]
[420187861,1775763058397,-3168.19,0.00019726,18]
[420187862,1775763058418,-500.0,0.00019726,18]
[420187863,1775763058428,-239.95973187,0.00019726,18]
[420187864,1775763058437,-507.48,0.00019726,18]
[420187865,1775763058446,-2156.6,0.00019726,18]
[420187866,1775763058455,-637.14000686,0.00019726,18]
[420187867,1775763058466,-500.0,0.00019726,18]
[420187868,1775763058475,-500.0,0.00019726,18]
[420187869,1775763058486,-563.01,0.00019726,18]
[420187870,1775763058495,-500.0,0.00019726,18]
[420187871,1775763058504,-810.07,0.00019726,18]
[420187872,1775763058514,-500.0,0.00019726,18]
[420187873,1775763058523,-500.0,0.00019726,18]
[420187874,1775763058533,-500.0,0.00019726,18]
[420187875,1775763058543,-500.0,0.00019726,18]
[420187876,1775763058552,-3056.24,0.00019726,18]
[420187877,1775763058562,-500.0,0.00019726,18]
[420187878,1775763058571,-1401.33,0.00019726,18]
[420187879,1775763058580,-1116.92,0.00019726,18]
[420187880,1775763058589,-500.0,0.00019726,18]
[420187881,1775763058598,-500.0,0.00019726,18]
[420187882,1775763058607,-5209.47,0.00019726,18]
[420187883,1775763058616,-500.0,0.00019726,18]
[420187884,1775763058625,-500.0,0.00019726,18]
[420187885,1775763058634,-500.0,0.00019726,18]
[420187886,1775763058643,-5365.13,0.00019726,18]
[420187887,1775763058652,-627.02,0.00019726,18]
[420187888,1775763058661,-850.99,0.00019726,18]
[420187889,1775763058671,-669.68,0.00019726,18]
[420187890,1775763058680,-1492.02,0.00019726,18]
[420187891,1775763058690,-728.8,0.00019726,18]
[420187892,1775763058699,-500.0,0.00019726,18]
[420187893,1775763058708,-1631.78,0.00019726,18]
[420187894,1775763058728,-500.0,0.00019726,18]
[420187895,1775763058753,-500.0,0.00019726,18]
[420187896,1775763058763,-500.0,0.00019726,18]
[420187897,1775763058772,-500.0,0.00019726,18]
[420187898,1775763058782,-500.0,0.00019726,18]
[420187899,1775763058792,-2122.1,0.00019726,18]
[420187900,1775763058802,-500.0,0.00019726,18]
[420187901,1775763058811,-651.63,0.00019726,18]
[420187902,1775763058820,-500.0,0.00019726,11]
[420187903,1775763058830,-500.0,0.00019726,18]
[420187904,1775763058840,-500.0,0.00019726,18]
[420187905,1775763058849,-500.0,0.00019726,18]
[420187906,1775763058858,-500.0,0.00019726,18]
[420187907,1775763058868,-500.0,0.00019726,18]
[420187908,1775763058877,-500.0,0.00019726,18]
[420187909,1775763058886,-500.0,0.00019726,18]
[420187910,1775763058896,-3348.34,0.00019726,18]
[420187911,1775763058905,-500.0,0.00019726,18]
[420187912,1775763058915,-500.0,0.00019726,18]
[420187913,1775763058924,-500.0,0.00019726,18]
[420187914,1775763058934,-951.19,0.00019726,18]
[420187915,1775763058943,-500.0,0.00019726,18]
[420187916,1775763058972,-3619.05266491,0.00019726,18]
[420187917,1775763058996,-142.41733509,0.00019726,18]
[420187918,1775763059006,-500.0,0.00019726,18]
[420187919,1775763059015,-500.0,0.00019726,18]
[420187920,1775763059024,-1415.44,0.00019726,18]
[420187921,1775763059034,-500.0,0.00019726,18]
[420187922,1775763059043,-674.35,0.00019726,18]
[420187923,1775763059052,-2590.91,0.00019726,18]
[420187924,1775763059061,-1147.09,0.00019726,18]
[420187925,1775763059071,-500.0,0.00019726,18]
[420187926,1775763059080,-1126.75,0.00019726,18]
[420187927,1775763059090,-500.0,0.00019726,18]
[420187928,1775763059099,-3021.45,0.00019726,18]
[420187929,1775763059108,-4984.74,0.00019726,18]
[420187930,1775763059117,-500.0,0.00019726,18]
[420187931,1775763059126,-13445.79,0.00019726,18]
[420187932,1775763059135,-610.2,0.00019726,18]
[420187933,1775763059144,-516.69,0.00019726,18]
[420187934,1775763059152,-4170.73,0.00019726,18]
[420187935,1775763059161,-2124.39,0.00019726,18]
[420187936,1775763059171,-2445.15642181,0.00019726,18]
[420187937,1775763059183,-2117.40357819,0.00019726,18]
[420187938,1775763059192,-2405.59,0.00019726,18]
[420187939,1775763059201,-500.0,0.00019726,18]
[420187940,1775763059210,-500.0,0.00019726,18]
[420187941,1775763059219,-932.88,0.00019726,18]
[420187942,1775763059230,-500.0,0.00019726,18]
[420187943,1775763059253,-704.77,0.00019726,18]
[420187944,1775763059262,-599.88,0.00019726,18]
[420187945,1775763059271,-3731.16,0.00019726,18]
[420187946,1775763059281,-500.0,0.00019726,18]
[420187947,1775763059290,-500.0,0.00019726,18]
[420187948,1775763059299,-695.89,0.00019726,18]
[420187949,1775763059308,-11447.53,0.00019726,18]
[420187950,1775763059321,-574.61,0.00019726,2]
[420187951,1775763059354,-500.0,0.00019726,18]
[420187952,1775763059363,-500.0,0.00019726,18]
[420187953,1775763059371,-636.7249037,0.00019726,18]
[420187954,1775763059381,-500.0,0.00019726,18]
[420187955,1775763059390,-500.0,0.00019726,18]
[420187956,1775763059399,-691.33,0.00019726,18]
[420187957,1775763059408,-500.0,0.00019726,18]
[420187958,1775763059418,-500.91,0.00019726,18]
[420187959,1775763059427,-500.0,0.00019726,18]
[420187960,1775763059436,-500.0,0.00019726,2]
[420187961,1775763059445,-857.78,0.00019726,18]
[420187962,1775763059453,-500.0,0.00019726,18]
[420187963,1775763059463,-174.0,0.00019862,2]
[420187964,1775763059472,-156.0,0.00019862,2]
[420187965,1775763059481,-192.0,0.00019862,2]
[420187966,1775763059491,-446.0,0.00019862,2]
[420187967,1775763059500,-219.90276144,0.000199,2]
[420187968,1775763059509,-1193.0,0.00019964,5]
[420187969,1775763059518,-7068.0,0.00019964,5]
[420187970,1775763059527,-500.0,0.00019973,2]
[420187971,1775763059536,-335.005,0.0002,2]
[420187972,1775763059545,-3886.13906513,0.0002,2]
[420187973,1775763822131,10000.0,9.001e-05,2]
[420187974,1775763838694,10000.0,9.001e-05,2]
[420187975,1775763863805,8717.0,9.001e-05,2]
[420188073,1775764238514,-176.59,0.00013186,2]
[420188074,1775764238524,-1000.0,0.00013699,2]
[420188075,1775764238533,-177.0,0.00015443,2]
[420188076,1775764238543,-300.0,0.00016438,2]
[420188077,1775764238552,-200.0,0.00017354,2]
[420188078,1775764238561,-204.0,0.00017443,2]
[420188079,1775764238569,-2495.95716792,0.00017942,2]
[420188080,1775764238585,-10903.05418048,0.00017942,2]
[420188081,1775764238594,-330.0,0.00017964,2]
[420188082,1775764238603,-192.842799,0.00018153,2]
[420188083,1775764238611,-289.03575981,0.00018442,2]
[420188084,1775764238621,-537.6845,0.00018531,2]
[420188085,1775764238631,-500.0,0.0001854,2]
[420188086,1775764238640,-500.0,0.0001854,2]
[420188087,1775764238649,-500.0,0.0001854,2]
[420188088,1775764238659,-500.0,0.0001854,2]
[420188089,1775764238668,-500.0,0.0001854,2]
[420188090,1775764238677,-500.0,0.0001854,2]
[420188091,1775764238687,-500.0,0.0001854,2]
[420188092,1775764238696,-500.0,0.0001854,2]
[420188093,1775764238706,-500.0,0.0001854,2]
[420188094,1775764238715,-500.0,0.0001854,2]
[420188095,1775764238725,-500.0,0.0001854,2]
[420188096,1775764238735,-468.28574865,0.0001854,2]
[420188097,1775764238745,-500.0,0.0001854,2]
[420188098,1775764238755,-500.0,0.0001854,2]
[420188099,1775764238764,-500.0,0.0001854,2]
[420188100,1775764238774,-500.0,0.0001854,2]
[420188101,1775764238783,-500.0,0.0001854,2]
[420188102,1775764238793,-500.0,0.0001854,2]
[420188103,1775764238802,-500.0,0.0001854,2]
[420188104,1775764238811,-500.0,0.0001854,2]
[420188105,1775764238820,-215.94458267,0.0001854,2]
[420188106,1775764238830,-500.0,0.0001854,2]
[420188107,1775764238839,-500.0,0.0001854,2]
[420188108,1775764238848,-500.0,0.0001854,2]
[420188109,1775764238857,-500.0,0.0001854,2]
[420188110,1775764238867,-500.0,0.0001854,2]
[420188111,1775764238876,-500.0,0.0001854,2]
[420188112,1775764238886,-500.0,0.0001854,2]
[420188113,1775764238916,-500.0,0.0001854,2]
[420188114,1775764238927,-500.0,0.0001854,2]
[420188115,1775764238936,-500.0,0.0001854,2]
[420188116,1775764238945,-500.0,0.0001854,2]
[420188117,1775764238954,-500.0,0.0001854,2]
[420188118,1775764238968,-500.0,0.0001854,2]
[420188119,1775764238977,-447.99489608,0.00018541,2]
[420188120,1775764239003,-500.0,0.00018541,2]
[420188121,1775764239012,-500.0,0.00018541,2]
[420188122,1775764239021,-500.0,0.00018541,2]
[420188123,1775764239030,-500.0,0.00018541,2]
[420188124,1775764239040,-500.0,0.00018541,2]
[420188125,1775764239049,-500.0,0.00018541,2]
[420188126,1775764239058,-500.0,0.00018541,2]
[420188127,1775764239093,-500.0,0.00018541,2]
[420188128,1775764239118,-500.0,0.00018541,2]
[420188129,1775764239128,-500.0,0.00018541,2]
[420188130,1775764239144,-500.0,0.00018541,2]
[420188131,1775764239153,-500.0,0.00018541,2]
[420188132,1775764239163,-500.0,0.00018541,2]
[420188133,1775764239197,-456.65297431,0.00018541,2]
[420188134,1775764239207,-1437.53912575,0.00018541,2]
[420188135,1775764239219,-1437.53912575,0.00018541,2]
[420188136,1775764239228,-1437.53912575,0.00018541,2]
[420188137,1775764239237,-1437.53912575,0.00018541,2]
[420188138,1775764239248,-1437.53912575,0.00018541,2]
[420188139,1775764239258,-1437.53912575,0.00018541,2]
[420188140,1775764239267,-1437.53912575,0.00018541,2]
[420188141,1775764239277,-1437.53912575,0.00018541,2]
[420188142,1775764239287,-1437.53912575,0.00018541,2]
[420188143,1775764239296,-1437.53912575,0.00018541,2]
[420188144,1775764239305,-1437.53912575,0.00018541,2]
[420188145,1775764239314,-1437.53912575,0.00018541,2]
[420188146,1775764239324,-1437.53912575,0.00018541,2]
[420188147,1775764239333,-1545.35456018,0.00018541,2]